{"text_format":"1","workbook":"xlsx","n_sheets":3,"sheets":["Списък на складовите наличности","Списък за вземане на складо... ","Търсене на СК"],"not_rendered":{"charts":0,"images":0,"macros":1,"external_links":0,"defined_names":7,"comments":0,"pivot_tables":0},"unopened":[],"bounds":{"document_bytes":16777216,"sheet_cells":100000,"rows_first":2000,"rows_last":500,"rows_between":2000,"halvings":0,"cell_chars":16384,"cell_head_chars":4096},"cells_cut":0,"cells_raw":0,"read":"whole","date_system":"1900"}

{"sheet":"Списък на складовите наличности","index":0,"n_rows":15,"n_cols":11,"rows_kept":15,"cut":false,"hidden":false,"merged":[]}
[null,"СПИСЪК НА СКЛАДОВИТЕ НАЛИЧНОСТИ"]
[null,"ОБЩА СТОЙНОСТ НА СКЛАДОВИТЕ НАЛИЧНОСТИ:","НАЛИЧНИ АРТИКУЛИ:","БРОЙ СКЛАДОВИ КЛЕТКИ:","СПИСЪК ЗА ВЗЕМАНЕ НА СКЛАДОВИ НАЛИЧНОСТИ\n","ТЪРСЕНЕ НА СК"]
[null,{"$f":"SUM(Списък_с_наличности[СТОЙНОСТ НА СКЛАДОВИТЕ НАЛИЧНОСТИ])","v":4649},{"$f":"COUNTA(Списък_с_наличности[ОПИСАНИЕ])","v":11},{"$f":"SUMPRODUCT((1/COUNTIF(Списък_с_наличности[СК №],Списък_с_наличности[СК №]&\"\")))","v":6}]
[null,"Инвентарен номер","ОПИСАНИЕ","СК №","МЕСТОПОЛОЖЕНИЕ","ЕДИНИЦА","КОЛИЧЕСТВО","КОЛИЧЕСТВО ПОВТОРНА ПОРЪЧКА","ЦЕНА","СТОЙНОСТ НА СКЛАДОВИТЕ НАЛИЧНОСТИ","ПОВТОРНА ПОРЪЧКА"]
[null,"SP7875","Артикул 1","T345",{"$f":"IFERROR(VLOOKUP(Списък_с_наличности[[#This Row],[СК №]],'Търсене на СК'!$B$5:$G$11,3,FALSE),\"\")","v":"Ред 2, слот 1"},"Бройка",20,10,30,{"$f":"Списък_с_наличности[[#This Row],[КОЛИЧЕСТВО]]*Списък_с_наличности[[#This Row],[ЦЕНА]]","v":600},{"$f":"IFERROR(IF('Списък на складовите наличности'!$G5<='Списък на складовите наличности'!$H5,1,0),0)","v":0}]
[null,"TR87680","Артикул 2","T345",{"$f":"IFERROR(VLOOKUP(Списък_с_наличности[[#This Row],[СК №]],'Търсене на СК'!$B$5:$G$11,3,FALSE),\"\")","v":"Ред 2, слот 1"},"Бройка",30,15,40,{"$f":"Списък_с_наличности[[#This Row],[КОЛИЧЕСТВО]]*Списък_с_наличности[[#This Row],[ЦЕНА]]","v":1200},{"$f":"IFERROR(IF('Списък на складовите наличности'!$G6<='Списък на складовите наличности'!$H6,1,0),0)","v":0}]
[null,"MK676554","Артикул 3","T5789",{"$f":"IFERROR(VLOOKUP(Списък_с_наличности[[#This Row],[СК №]],'Търсене на СК'!$B$5:$G$11,3,FALSE),\"\")","v":"Ред 1, слот 1"},"Бройка",10,5,5,{"$f":"Списък_с_наличности[[#This Row],[КОЛИЧЕСТВО]]*Списък_с_наличности[[#This Row],[ЦЕНА]]","v":50},{"$f":"IFERROR(IF('Списък на складовите наличности'!$G7<='Списък на складовите наличности'!$H7,1,0),0)","v":0}]
[null,"YE98767","Артикул 4","T9876",{"$f":"IFERROR(VLOOKUP(Списък_с_наличности[[#This Row],[СК №]],'Търсене на СК'!$B$5:$G$11,3,FALSE),\"\")","v":"Ред 3, слот 2"},"Кашон (10 кутии)",40,10,15,{"$f":"Списък_с_наличности[[#This Row],[КОЛИЧЕСТВО]]*Списък_с_наличности[[#This Row],[ЦЕНА]]","v":600},{"$f":"IFERROR(IF('Списък на складовите наличности'!$G8<='Списък на складовите наличности'!$H8,1,0),0)","v":0}]
[null,"XR23423","Артикул 5","T098",{"$f":"IFERROR(VLOOKUP(Списък_с_наличности[[#This Row],[СК №]],'Търсене на СК'!$B$5:$G$11,3,FALSE),\"\")","v":"Ред 3, слот 1"},"Бройка",12,10,26,{"$f":"Списък_с_наличности[[#This Row],[КОЛИЧЕСТВО]]*Списък_с_наличности[[#This Row],[ЦЕНА]]","v":312},{"$f":"IFERROR(IF('Списък на складовите наличности'!$G9<='Списък на складовите наличности'!$H9,1,0),0)","v":0}]
[null,"PW98762","Артикул 6","T345",{"$f":"IFERROR(VLOOKUP(Списък_с_наличности[[#This Row],[СК №]],'Търсене на СК'!$B$5:$G$11,3,FALSE),\"\")","v":"Ред 2, слот 1"},"Бройка",7,10,50,{"$f":"Списък_с_наличности[[#This Row],[КОЛИЧЕСТВО]]*Списък_с_наличности[[#This Row],[ЦЕНА]]","v":350},{"$f":"IFERROR(IF('Списък на складовите наличности'!$G10<='Списък на складовите наличности'!$H10,1,0),0)","v":1}]
[null,"BM87684","Артикул 7","T349",{"$f":"IFERROR(VLOOKUP(Списък_с_наличности[[#This Row],[СК №]],'Търсене на СК'!$B$5:$G$11,3,FALSE),\"\")","v":"Ред 1, слот 2"},"Бройка",10,5,10,{"$f":"Списък_с_наличности[[#This Row],[КОЛИЧЕСТВО]]*Списък_с_наличности[[#This Row],[ЦЕНА]]","v":100},{"$f":"IFERROR(IF('Списък на складовите наличности'!$G11<='Списък на складовите наличности'!$H11,1,0),0)","v":0}]
[null,"BH67655","Артикул 8","T5789",{"$f":"IFERROR(VLOOKUP(Списък_с_наличности[[#This Row],[СК №]],'Търсене на СК'!$B$5:$G$11,3,FALSE),\"\")","v":"Ред 1, слот 1"},"Бройка",19,10,3,{"$f":"Списък_с_наличности[[#This Row],[КОЛИЧЕСТВО]]*Списък_с_наличности[[#This Row],[ЦЕНА]]","v":57},{"$f":"IFERROR(IF('Списък на складовите наличности'!$G12<='Списък на складовите наличности'!$H12,1,0),0)","v":0}]
[null,"WT98768","Артикул 9","T9875",{"$f":"IFERROR(VLOOKUP(Списък_с_наличности[[#This Row],[СК №]],'Търсене на СК'!$B$5:$G$11,3,FALSE),\"\")","v":"Ред 2, слот 2"},"Пакет (5 кутии)",20,30,14,{"$f":"Списък_с_наличности[[#This Row],[КОЛИЧЕСТВО]]*Списък_с_наличности[[#This Row],[ЦЕНА]]","v":280},{"$f":"IFERROR(IF('Списък на складовите наличности'!$G13<='Списък на складовите наличности'!$H13,1,0),0)","v":1}]
[null,"TS3456","Артикул 10","T349",{"$f":"IFERROR(VLOOKUP(Списък_с_наличности[[#This Row],[СК №]],'Търсене на СК'!$B$5:$G$11,3,FALSE),\"\")","v":"Ред 1, слот 2"},"Бройка",15,8,60,{"$f":"Списък_с_наличности[[#This Row],[КОЛИЧЕСТВО]]*Списък_с_наличности[[#This Row],[ЦЕНА]]","v":900},{"$f":"IFERROR(IF('Списък на складовите наличности'!$G14<='Списък на складовите наличности'!$H14,1,0),0)","v":0}]
[null,"WDG123","Артикул 11","T349",{"$f":"IFERROR(VLOOKUP(Списък_с_наличности[[#This Row],[СК №]],'Търсене на СК'!$B$5:$G$11,3,FALSE),\"\")","v":"Ред 1, слот 2"},"Бройка",25,15,8,{"$f":"Списък_с_наличности[[#This Row],[КОЛИЧЕСТВО]]*Списък_с_наличности[[#This Row],[ЦЕНА]]","v":200},{"$f":"IFERROR(IF('Списък на складовите наличности'!$G15<='Списък на складовите наличности'!$H15,1,0),0)","v":0}]

{"sheet":"Списък за вземане на складо... ","index":1,"n_rows":9,"n_cols":9,"rows_kept":9,"cut":false,"hidden":false,"merged":[]}
[null,"СПИСЪК ЗА ВЗЕМАНЕ НА СКЛАДОВИ НАЛИЧНОСТИ"]
[null,null,"СПИСЪК С НАЛИЧНОСТИ"]
[]
[null,"ПОРЪЧКА №","Инвентарен номер","КОЛИЧЕСТВО ЗА ВЗЕМАНЕ","НАЛИЧНО КОЛИЧЕСТВО","ОПИСАНИЕ НА АРТИКУЛ","ЕДИНИЦА","СК №","МЕСТОПОЛОЖЕНИЕ"]
[null,"TP001-1","SP7875",3,{"$f":"IFERROR(VLOOKUP(InventoryPickList[Инвентарен номер],Списък_с_наличности[],6,FALSE),\"\")","v":20},{"$f":"IFERROR(VLOOKUP(InventoryPickList[Инвентарен номер],Списък_с_наличности[],2,FALSE),\"\")","v":"Артикул 1"},{"$f":"IFERROR(VLOOKUP(InventoryPickList[Инвентарен номер],Списък_с_наличности[],5,FALSE),\"\")","v":"Бройка"},{"$f":"IFERROR(VLOOKUP(InventoryPickList[Инвентарен номер],Списък_с_наличности[],3,FALSE),\"\")","v":"T345"},{"$f":"IFERROR(VLOOKUP(InventoryPickList[Инвентарен номер],Списък_с_наличности[],4,FALSE),\"\")","v":"Ред 2, слот 1"}]
[null,"TP001-1","YE98767",1,{"$f":"IFERROR(VLOOKUP(InventoryPickList[Инвентарен номер],Списък_с_наличности[],6,FALSE),\"\")","v":40},{"$f":"IFERROR(VLOOKUP(InventoryPickList[Инвентарен номер],Списък_с_наличности[],2,FALSE),\"\")","v":"Артикул 4"},{"$f":"IFERROR(VLOOKUP(InventoryPickList[Инвентарен номер],Списък_с_наличности[],5,FALSE),\"\")","v":"Кашон (10 кутии)"},{"$f":"IFERROR(VLOOKUP(InventoryPickList[Инвентарен номер],Списък_с_наличности[],3,FALSE),\"\")","v":"T9876"},{"$f":"IFERROR(VLOOKUP(InventoryPickList[Инвентарен номер],Списък_с_наличности[],4,FALSE),\"\")","v":"Ред 3, слот 2"}]
[null,"TP001-1","BM87684",2,{"$f":"IFERROR(VLOOKUP(InventoryPickList[Инвентарен номер],Списък_с_наличности[],6,FALSE),\"\")","v":10},{"$f":"IFERROR(VLOOKUP(InventoryPickList[Инвентарен номер],Списък_с_наличности[],2,FALSE),\"\")","v":"Артикул 7"},{"$f":"IFERROR(VLOOKUP(InventoryPickList[Инвентарен номер],Списък_с_наличности[],5,FALSE),\"\")","v":"Бройка"},{"$f":"IFERROR(VLOOKUP(InventoryPickList[Инвентарен номер],Списък_с_наличности[],3,FALSE),\"\")","v":"T349"},{"$f":"IFERROR(VLOOKUP(InventoryPickList[Инвентарен номер],Списък_с_наличности[],4,FALSE),\"\")","v":"Ред 1, слот 2"}]
[null,"TP001-1","TS3456",6,{"$f":"IFERROR(VLOOKUP(InventoryPickList[Инвентарен номер],Списък_с_наличности[],6,FALSE),\"\")","v":15},{"$f":"IFERROR(VLOOKUP(InventoryPickList[Инвентарен номер],Списък_с_наличности[],2,FALSE),\"\")","v":"Артикул 10"},{"$f":"IFERROR(VLOOKUP(InventoryPickList[Инвентарен номер],Списък_с_наличности[],5,FALSE),\"\")","v":"Бройка"},{"$f":"IFERROR(VLOOKUP(InventoryPickList[Инвентарен номер],Списък_с_наличности[],3,FALSE),\"\")","v":"T349"},{"$f":"IFERROR(VLOOKUP(InventoryPickList[Инвентарен номер],Списък_с_наличности[],4,FALSE),\"\")","v":"Ред 1, слот 2"}]
[null,"TP001-1","MK676554",3,{"$f":"IFERROR(VLOOKUP(InventoryPickList[Инвентарен номер],Списък_с_наличности[],6,FALSE),\"\")","v":10},{"$f":"IFERROR(VLOOKUP(InventoryPickList[Инвентарен номер],Списък_с_наличности[],2,FALSE),\"\")","v":"Артикул 3"},{"$f":"IFERROR(VLOOKUP(InventoryPickList[Инвентарен номер],Списък_с_наличности[],5,FALSE),\"\")","v":"Бройка"},{"$f":"IFERROR(VLOOKUP(InventoryPickList[Инвентарен номер],Списък_с_наличности[],3,FALSE),\"\")","v":"T5789"},{"$f":"IFERROR(VLOOKUP(InventoryPickList[Инвентарен номер],Списък_с_наличности[],4,FALSE),\"\")","v":"Ред 1, слот 1"}]

{"sheet":"Търсене на СК","index":2,"n_rows":11,"n_cols":7,"rows_kept":11,"cut":false,"hidden":false,"merged":[]}
[null,"ТЪРСЕНЕ НА СК"]
[null,"СПИСЪК С НАЛИЧНОСТИ"]
[]
[null,"СК №","ОПИСАНИЕ","МЕСТОПОЛОЖЕНИЕ","ШИРИНА","ВИСОЧИНА","ДЪЛЖИНА"]
[null,"T345","Голяма СК","Ред 2, слот 1",50,10,10]
[null,"T5789","Малка СК","Ред 1, слот 1",25,5,5]
[null,"T9876","Голяма СК","Ред 3, слот 2",50,10,10]
[null,"T098","Средна СК","Ред 3, слот 1",30,7,10]
[null,"T349","Малка СК","Ред 1, слот 2",25,5,5]
[null,"T5789","Голяма СК","Ред 4, слот 5",50,10,10]
[null,"T9875","Голяма СК","Ред 2, слот 2",50,10,10]